bitfinex/quotes_BTCUSD_20251012
["timestamp","ask_amount","ask_price","bid_price","bid_amount"]
[1760252301678,6.2270303,112060.0,112050.0,0.00345143]
[1760252302084,2.2879513,112060.0,112050.0,0.00345143]
[1760252302359,6.2270303,112060.0,112050.0,0.00345143]
[1760252302795,6.24372951,112060.0,112050.0,0.00345143]
[1760252304157,2.30465051,112060.0,112050.0,0.01884143]
[1760252304363,6.2270303,112060.0,112050.0,0.00345143]
[1760252304793,2.2879513,112060.0,112050.0,0.00345143]
[1760252305029,6.2270303,112060.0,112050.0,0.00345143]
[1760252305380,6.31574964,112060.0,112050.0,0.00345143]
[1760252305725,6.2270303,112060.0,112050.0,0.00345143]
[1760252306344,2.2879513,112060.0,112050.0,0.00345143]
[1760252306667,6.2270303,112060.0,112050.0,0.00345143]
[1760252306871,2.2879513,112060.0,112050.0,0.00345143]
[1760252307341,6.2270303,112060.0,112050.0,0.00345143]
[1760252307574,2.2879513,112060.0,112050.0,0.00345143]
[1760252307745,6.2270303,112060.0,112050.0,0.00345143]
[1760252308920,8.077686,112060.0,112050.0,0.00345143]
[1760252309160,8.09689622,112060.0,112050.0,0.00345143]
[1760252309298,4.59521722,112060.0,112050.0,0.00345143]
[1760252309505,8.53429622,112060.0,112050.0,0.00345143]
[1760252309859,8.54263192,112060.0,112050.0,0.00345143]
[1760252311575,4.60355292,112060.0,112050.0,0.00345143]
[1760252311884,8.52863322,112060.0,112050.0,0.00345143]
[1760252312302,4.58955422,112060.0,112050.0,0.00345143]
[1760252312686,8.52863322,112060.0,112050.0,0.00345143]
[1760252312860,8.52861761,112060.0,112050.0,0.00345143]
[1760252313060,4.58953861,112060.0,112050.0,0.00345143]
[1760252313294,8.52861761,112060.0,112050.0,0.00345143]
[1760252314457,4.58953861,112060.0,112050.0,0.00345143]
[1760252314617,8.52861761,112060.0,112050.0,0.00345143]
[1760252315205,4.15213861,112060.0,112050.0,0.00345143]
[1760252315384,8.09121761,112060.0,112050.0,0.00345143]
[1760252316273,8.10521804,112060.0,112050.0,0.00345143]
[1760252317039,8.10621804,112060.0,112050.0,0.00345143]
[1760252318474,8.0174987,112060.0,112050.0,0.00345143]
[1760252319392,4.0784197,112060.0,112050.0,0.00345143]
[1760252319621,8.0174987,112060.0,112050.0,1e-08]
[1760252319772,0.51853954,112020.0,112010.0,0.09600363]
[1760252319991,1.68204596,112020.0,112010.0,0.09615332]
[1760252320231,1.68204596,112020.0,112010.0,0.05241969]
[1760252320562,1.70891683,112020.0,112010.0,0.05241969]
[1760252322187,1.70891683,112020.0,112010.0,0.05341969]
[1760252322434,1.70891683,112020.0,112010.0,0.05441969]
[1760252323576,1.71765205,112020.0,112010.0,0.05441969]
[1760252325377,1.71765205,112020.0,112010.0,0.03202239]
[1760252325586,5.76377974,112020.0,112010.0,0.00447239]
[1760252325796,5.78298875,112020.0,112010.0,0.00447239]
[1760252326016,5.78298875,112020.0,112010.0,0.05474239]
[1760252326017,0.570821,112020.0,112010.0,0.05474239]
[1760252326242,1.1534012,112020.0,112010.0,0.05474239]
[1760252326448,1.7359814,112020.0,112010.0,0.00347239]
[1760252326655,1.7359814,112020.0,112010.0,0.00247239]
[1760252327077,1.82470074,112020.0,112010.0,0.01854239]
[1760252328040,1.7359814,112020.0,112010.0,0.01854239]
[1760252331694,0.570821,112020.0,112010.0,0.01854239]
[1760252331853,1.7359814,112020.0,112010.0,0.01854239]
[1760252334759,5.6750604,112020.0,112010.0,0.01854239]
[1760252334967,5.69428959,112020.0,112010.0,0.00247239]
[1760252335206,4.52912919,112020.0,112010.0,0.01854239]
[1760252335467,5.69428959,112020.0,112010.0,0.03007239]
[1760252335608,5.70829326,112020.0,112010.0,0.00247239]
[1760252335819,5.70829326,112020.0,112010.0,0.01854239]
[1760252339688,5.70829326,112020.0,112010.0,0.00247239]
[1760252340158,5.7970126,112020.0,112010.0,0.00247239]
[1760252341944,4.6318522,112020.0,112010.0,0.00247239]
[1760252342120,5.80535936,112020.0,112010.0,0.00247239]
[1760252343804,5.81534896,112020.0,112010.0,0.00247239]
[1760252344009,0.17857142,112000.0,111990.0,0.01186]
[1760252344212,0.77782699,112000.0,111990.0,0.00089923]
[1760252344372,1.37169845,112000.0,111990.0,0.00089923]
[1760252344743,1.38728514,112000.0,111990.0,0.00089923]
[1760252345160,0.80470494,112000.0,111990.0,0.00089923]
[1760252345357,0.80470494,112000.0,111990.0,0.02849923]
[1760252346354,1.38728514,112000.0,111990.0,0.00089923]
[1760252346779,1.38728514,112000.0,111990.0,0.01696923]
[1760252346988,0.80470494,112000.0,111990.0,0.01696923]
[1760252348617,0.62613352,112000.0,111990.0,0.01696923]
[1760252348940,0.80470494,112000.0,111990.0,0.01696923]
[1760252349559,0.80470494,112000.0,111990.0,0.01813099]
[1760252351866,1.81600448,112000.0,111990.0,0.00206099]
[1760252352306,1.72728514,112000.0,111990.0,0.00206099]
[1760252352644,5.66636414,112000.0,111990.0,0.00206099]
[1760252365215,5.08378394,112000.0,111990.0,0.01777099]
[1760252367274,5.08378394,112000.0,111990.0,0.00206099]
[1760252368033,4.50120374,112000.0,111990.0,0.00206099]
[1760252368211,5.08378394,112000.0,111990.0,0.00206099]
[1760252370209,5.06710857,112000.0,111990.0,0.05242099]
[1760252371341,5.06710857,112000.0,111990.0,0.02987099]
[1760252375791,5.06710857,112000.0,111990.0,0.05242099]
[1760252376086,5.06710857,112000.0,111990.0,0.02987099]
[1760252376314,5.06710857,112000.0,111990.0,0.05242099]
[1760252376718,4.48452837,112000.0,111990.0,0.05242099]
[1760252376928,5.06710857,112000.0,111990.0,0.05242099]
[1760252377571,5.04023062,112000.0,111990.0,0.0767734]
[1760252377783,5.06710852,112000.0,111990.0,0.0767734]
[1760252378345,5.06710852,112000.0,111990.0,0.24886709]
[1760252378346,0.34,112000.0,111990.0,0.24886709]
[1760252378544,0.34,112000.0,111990.0,0.23100836]
[1760252378752,0.34,112000.0,111990.0,0.05242099]
[1760252379728,0.60945552,112010.0,111990.0,0.05242099]
[1760252379935,0.94945552,112010.0,112000.0,0.03627]
[1760252380135,0.94945552,112010.0,112000.0,0.05846792]
[1760252380379,0.36687532,112010.0,112000.0,0.05846792]
[1760252380725,0.94945552,112010.0,112000.0,0.05846792]
[1760252380932,0.9225802,112010.0,112000.0,0.05846792]
[1760252381060,0.9235802,112010.0,112000.0,0.05846792]
[1760252381591,0.9225802,112010.0,112000.0,0.05846792]
[1760252381740,0.9235802,112010.0,112000.0,0.05197]
[1760252381935,0.9245802,112010.0,112000.0,0.05197]
[1760252382162,0.9235802,112010.0,112000.0,0.05197]
[1760252382363,0.341,112010.0,112000.0,0.05197]
[1760252382592,0.34,112010.0,112000.0,0.05846692]
[1760252383959,0.9225802,112010.0,112000.0,0.05846692]
[1760252384182,0.9225802,112010.0,112000.0,0.05197]
[1760252385464,0.9225802,112010.0,112000.0,0.05255083]
[1760252386870,0.34,112010.0,112000.0,0.05255083]
[1760252387084,0.9225802,112010.0,112000.0,0.05255083]
[1760252387755,0.92225523,112010.0,112000.0,0.05255083]
[1760252389778,0.34,112010.0,112000.0,0.05255083]
[1760252389981,0.92225523,112010.0,112000.0,0.05255083]
[1760252393668,5.5323088,112010.0,112000.0,0.02803083]
[1760252393869,5.44358946,112010.0,112000.0,0.00058083]
[1760252394076,5.47046519,112010.0,112000.0,0.00058083]
[1760252395934,1.53138619,112010.0,112000.0,0.00058083]
[1760252396144,5.47046519,112010.0,112000.0,0.00058083]
[1760252396772,4.30595473,112010.0,112000.0,0.02844083]
[1760252396988,5.47046519,112010.0,112000.0,0.05311083]
[1760252397572,5.47046519,112010.0,112000.0,0.02844083]
[1760252398444,5.47046519,112010.0,112000.0,0.01223083]
[1760252398648,5.47046519,112010.0,112000.0,0.00058083]
[1760252398866,4.30595473,112010.0,112000.0,0.01679083]
[1760252399071,0.92225523,112010.0,112000.0,0.05311083]
[1760252399495,0.93904606,112010.0,112000.0,0.05311083]
[1760252399700,0.92225523,112010.0,112000.0,0.05311083]
[1760252400897,0.34,112010.0,112000.0,0.05311083]
[1760252401114,0.92225523,112010.0,112000.0,0.05311083]
[1760252401728,1.50451046,112010.0,112000.0,0.02844083]
[1760252402567,5.44358946,112010.0,112000.0,0.02844083]
[1760252402768,5.44358946,112010.0,112000.0,0.05311083]
[1760252404370,5.44358946,112010.0,112000.0,0.00058083]
[1760252404581,4.279079,112010.0,112000.0,0.00058083]
[1760252404786,5.47046548,112010.0,112000.0,0.00058083]
[1760252405593,5.48446943,112010.0,112000.0,0.00058083]
[1760252406222,5.57318877,112010.0,112000.0,0.00058083]
[1760252407267,5.48446943,112010.0,112000.0,0.00058083]
[1760252409148,5.50119067,112010.0,112000.0,0.00058083]
[1760252409366,5.50119027,112010.0,112000.0,0.00058083]
[1760252410726,1.56211127,112010.0,112000.0,0.00058083]
[1760252410928,5.48446943,112010.0,112000.0,0.02716083]
[1760252411584,5.48446943,112010.0,112000.0,0.00058083]
[1760252412737,5.57318877,112010.0,112000.0,0.00058083]
[1760252413112,5.48446943,112010.0,112000.0,0.00058083]
[1760252417590,5.52044732,112010.0,112000.0,0.00058083]
[1760252418178,4.35593686,112010.0,112000.0,0.00058083]
[1760252418401,1.58136832,112010.0,112000.0,0.00058083]
[1760252418628,5.52044732,112010.0,112000.0,0.00058083]
[1760252419255,5.50118789,112010.0,112000.0,0.00058083]
[1760252419468,5.50118789,112010.0,112000.0,0.01565083]
[1760252421070,4.91893266,112010.0,112000.0,0.05055083]
[1760252421515,4.91893266,112010.0,112000.0,0.02716083]
[1760252422941,5.58990723,112010.0,112000.0,0.02716083]
[1760252423086,5.58990723,112010.0,112000.0,0.01209083]
[1760252423286,5.50118789,112010.0,112000.0,0.01209083]
[1760252423717,5.50118047,112010.0,112000.0,0.01209083]
[1760252424993,4.33667001,112010.0,112000.0,0.02716083]
[1760252425196,0.97984624,112010.0,112000.0,0.02716083]
[1760252425766,0.97984624,112010.0,112000.0,0.05055083]
[1760252426406,0.97984624,112010.0,112000.0,0.02716083]
[1760252428758,1.15840172,112010.0,112000.0,0.02716083]
[1760252430623,1.74065695,112010.0,112000.0,0.02716083]
[1760252431549,1.74065695,112010.0,112000.0,0.01209083]
[1760252432398,1.74065695,112010.0,112000.0,0.00058083]
[1760252432570,1.726653,112010.0,112000.0,0.00058083]
[1760252433845,1.726653,112010.0,112000.0,0.01565083]
[1760252435593,1.726653,112010.0,112000.0,0.00058083]
[1760252437770,5.56406274,112010.0,112000.0,0.00058083]
[1760252437990,5.325732,112010.0,112000.0,0.00058083]
[1760252439729,5.665732,112010.0,112000.0,0.00058083]
[1760252440839,5.665732,112010.0,112000.0,1e-08]
[1760252442250,6.24798723,112010.0,112000.0,1e-08]
[1760252442686,6.27226692,112010.0,112000.0,1e-08]
[1760252443312,6.29152646,112010.0,112000.0,1e-08]
[1760252444160,6.29252646,112010.0,112000.0,1e-08]
[1760252444835,6.29352646,112010.0,112000.0,1e-08]
[1760252445283,6.30188705,112010.0,112000.0,1e-08]
[1760252445484,6.39060639,112010.0,112000.0,1e-08]
[1760252445930,6.3822458,112010.0,112000.0,1e-08]
[1760252446365,6.39060587,112010.0,112000.0,1e-08]
[1760252448040,4.64384018,112010.0,112000.0,1e-08]
[1760252448250,6.30188653,112010.0,112000.0,1e-08]
[1760252449130,2.36280753,112010.0,112000.0,1e-08]
[1760252449334,6.30188653,112010.0,112000.0,1e-08]
[1760252449541,5.72039682,112010.0,112000.0,1e-08]
[1760252450586,5.80911616,112010.0,112000.0,1e-08]
[1760252450798,5.72039682,112010.0,112000.0,1e-08]
[1760252452034,1.78131782,112010.0,112000.0,1e-08]
[1760252452239,5.72039682,112010.0,112000.0,1e-08]
[1760252452860,1.78131782,112010.0,112000.0,1e-08]
[1760252453071,5.72039682,112010.0,112000.0,1e-08]
[1760252453271,1.78131782,112010.0,112000.0,1e-08]
[1760252453475,5.74446477,112010.0,112000.0,1e-08]
[1760252453835,5.83318411,112010.0,112000.0,1e-08]
[1760252454237,1.89410511,112010.0,112000.0,1e-08]
[1760252454405,5.83318411,112010.0,112000.0,1e-08]
[1760252454602,1.89410511,112010.0,112000.0,1e-08]
[1760252454813,5.83318411,112010.0,112000.0,1e-08]
[1760252455445,1.89410511,112010.0,112000.0,1e-08]
[1760252455664,5.83318411,112010.0,112000.0,1e-08]
[1760252456530,1.89410511,112010.0,112000.0,1e-08]
[1760252456701,5.83318411,112010.0,112000.0,1e-08]
[1760252457508,5.80911616,112010.0,112000.0,1e-08]
[1760252458364,1.87003716,112010.0,112000.0,1e-08]
[1760252458592,5.80911616,112010.0,112000.0,1e-08]
[1760252458798,5.80915616,112010.0,112000.0,1e-08]
[1760252459451,1.87007716,112010.0,112000.0,1e-08]
[1760252459654,5.80915616,112010.0,112000.0,1e-08]
[1760252460922,5.80914782,112010.0,112000.0,1e-08]
[1760252461173,5.83321577,112010.0,112000.0,1e-08]
[1760252463143,5.72021674,112010.0,112000.0,1e-08]
[1760252463602,5.72018768,112010.0,112000.0,1e-08]
[1760252465088,1.78110868,112010.0,112000.0,1e-08]
[1760252465295,5.72018768,112010.0,112000.0,1e-08]
[1760252465910,1.78110868,112010.0,112000.0,1e-08]
[1760252466177,5.80890702,112010.0,112000.0,1e-08]
[1760252467802,5.74446737,112010.0,112000.0,1e-08]
[1760252468458,1.80538837,112010.0,112000.0,1e-08]
[1760252468662,5.74446737,112010.0,112000.0,1e-08]
[1760252472759,5.5380003,112010.0,112000.0,1e-08]
[1760252473149,5.54158452,112010.0,112000.0,1e-08]
[1760252473380,5.63030386,112010.0,112000.0,1e-08]
[1760252474886,1.69122486,112010.0,112000.0,1e-08]
[1760252475093,5.63030386,112010.0,112000.0,1e-08]
[1760252475637,1.69126486,112010.0,112000.0,1e-08]
[1760252475826,5.63034386,112010.0,112000.0,1e-08]
[1760252478333,1.69126486,112010.0,112000.0,1e-08]
[1760252478628,5.63034386,112010.0,112000.0,1e-08]
[1760252478860,6.23703653,112010.0,112000.0,1e-08]
[1760252479053,0.51858737,111990.0,111980.0,0.0004]
[1760252479199,5.04030436,111990.0,111980.0,0.00044983]
[1760252479432,1.12048825,111990.0,111980.0,0.00044983]
[1760252479632,5.05956725,111990.0,111980.0,0.00044983]
[1760252479835,5.08645122,111990.0,111980.0,0.00044983]
[1760252480081,1.14737222,111990.0,111980.0,0.00044983]
[1760252480272,2.32393946,111990.0,111980.0,0.00044983]
[1760252480469,6.26301846,111990.0,111980.0,0.00044983]
[1760252481923,6.2517272,111990.0,111980.0,0.00044983]
[1760252482130,5.66908921,111990.0,111980.0,0.00044983]
[1760252482547,1.73001021,111990.0,111980.0,0.00044983]
[1760252482952,5.66908921,111990.0,111980.0,0.00044983]
[1760252483364,1.73001021,111990.0,111980.0,0.00044983]
[1760252483566,5.66908921,111990.0,111980.0,0.00044983]
[1760252483761,1.74401827,111990.0,111980.0,0.00044983]
[1760252483962,5.77181661,111990.0,111980.0,0.00044983]
[1760252484169,5.68309727,111990.0,111980.0,0.00044983]
[1760252484484,5.68309727,111990.0,111980.0,0.00161175]
[1760252485085,5.6998157,111990.0,111980.0,0.00161175]
[1760252486863,4.35595235,111990.0,111980.0,0.18021507]
[1760252487077,5.50196544,111990.0,111980.0,0.19618507]
[1760252487277,1.83019315,111990.0,111980.0,0.00161175]
[1760252487414,5.76927215,111990.0,111980.0,0.00161175]
[1760252487620,5.68055281,111990.0,111980.0,0.00161175]
[1760252488007,5.68055281,111990.0,111980.0,0.01758175]
[1760252488635,5.68055281,111990.0,111980.0,0.00161175]
[1760252489426,5.69980852,111990.0,111980.0,0.00161175]
[1760252491362,5.69980852,111990.0,111980.0,0.00152835]
[1760252491751,5.69980852,111990.0,111980.0,0.00146071]
[1760252492685,5.78852786,111990.0,111980.0,0.00146071]
[1760252493333,4.53453254,111990.0,111980.0,0.01743071]
[1760252493591,4.53453254,111990.0,111980.0,0.19603403]
[1760252493816,5.69980852,111990.0,111980.0,0.19603403]
[1760252494291,5.34055281,111990.0,111980.0,0.19603403]
[1760252494528,5.34055281,111990.0,111980.0,0.01743071]
[1760252494721,5.34055281,111990.0,111980.0,0.00146071]
[1760252496127,5.68055281,111990.0,111980.0,0.00146071]
[1760252498749,5.76927215,111990.0,111980.0,0.00146071]
[1760252499187,5.68055281,111990.0,111980.0,0.00146071]
[1760252500852,4.51527683,111990.0,111980.0,0.00146071]
[1760252501060,5.68055281,111990.0,111980.0,0.00146071]
[1760252501825,5.68055281,111990.0,111980.0,0.00138806]
[1760252503752,5.68046351,111990.0,111980.0,0.00138806]
[1760252504173,5.6997345,111990.0,111980.0,0.00138806]
[1760252504380,5.72401419,111990.0,111980.0,0.00138806]
[1760252506689,5.8125586,111990.0,111980.0,0.00138806]
[1760252506892,5.72383926,111990.0,111980.0,0.00138806]
[1760252509716,6.30694885,111990.0,111980.0,0.00138806]
[1760252511367,6.31531773,111990.0,111980.0,0.00138806]
[1760252511822,2.37623873,111990.0,111980.0,0.00138806]
[1760252512037,6.31531773,111990.0,111980.0,0.00138806]
[1760252512247,6.40403707,111990.0,111980.0,0.00138806]
[1760252512671,2.46495807,111990.0,111980.0,0.00138806]
[1760252512878,6.40403707,111990.0,111980.0,0.00138806]
[1760252513296,6.31531773,111990.0,111980.0,0.00138806]
[1760252515204,6.11691388,111990.0,111980.0,0.00138806]
[1760252515602,6.14379953,111990.0,111980.0,0.00138806]
[1760252516071,2.20472053,111990.0,111980.0,0.00138806]
[1760252516284,6.14379953,111990.0,111980.0,0.00138806]
[1760252517304,6.23251887,111990.0,111980.0,0.00138806]
[1760252517487,6.14379953,111990.0,111980.0,0.00138806]
[1760252518469,6.12452854,111990.0,111980.0,0.00138806]
[1760252518696,6.14381454,111990.0,111980.0,0.00138806]
[1760252519237,6.14381454,111990.0,111980.0,0.01725806]
[1760252519238,4.37114928,111990.0,111980.0,0.01725806]
[1760252519439,5.53673966,111990.0,111980.0,0.05236806]
[1760252519646,5.50908478,111990.0,111980.0,0.05236806]
[1760252520141,5.06734721,111990.0,111980.0,0.23097138]
[1760252520340,5.6501424,111990.0,111980.0,0.23097138]
[1760252520751,5.3101424,111990.0,111980.0,0.23097138]
[1760252520954,5.6501424,111990.0,111980.0,0.23097138]
[1760252521419,4.48455202,111990.0,111980.0,0.23097138]
[1760252521832,0.02688565,111990.0,111980.0,0.23097138]
[1760252522037,0.58279519,111990.0,111980.0,0.23097138]
[1760252522244,0.92279519,111990.0,111980.0,0.23097138]
[1760252523489,1.10138256,111990.0,111980.0,0.23097138]
[1760252523903,1.10138256,111990.0,111980.0,0.02883806]
[1760252523904,1.68417775,111990.0,111980.0,0.02883806]
[1760252524107,1.68417775,111990.0,111980.0,0.20744138]
[1760252524317,1.71105717,111990.0,111980.0,0.20744138]
[1760252525490,0.94967461,111990.0,111980.0,0.23097138]
[1760252525690,0.94967461,111990.0,111980.0,0.2731005]
[1760252526138,0.92279519,111990.0,111980.0,0.2731005]
[1760252527253,0.34,111990.0,111980.0,0.27235999]
[1760252527474,0.92279519,111990.0,111980.0,0.27235999]
[1760252528405,0.92279519,111990.0,111980.0,0.23023087]
[1760252528883,0.34,111990.0,111980.0,0.23023087]
[1760252529109,0.92279519,111990.0,111980.0,0.23023087]
[1760252531031,0.34,111990.0,111980.0,0.23023087]
[1760252532434,0.34,111990.0,111980.0,0.25710711]
[1760252533062,0.34,111990.0,111980.0,0.31638417]
[1760252533244,0.92279519,111990.0,111980.0,0.31638417]
[1760252533727,0.34,111990.0,111980.0,0.31638417]
[1760252534084,0.34,111990.0,111980.0,0.28950793]
[1760252534472,0.34,111990.0,111980.0,0.31638417]
[1760252535248,0.36791293,112010.0,112000.0,0.17857142]
[1760252535449,0.36791293,112010.0,112000.0,0.26633593]
[1760252535660,0.02791293,112010.0,112000.0,0.26633593]
[1760252536276,0.02791293,112010.0,112000.0,0.23062142]
[1760252536499,0.61070812,112010.0,112000.0,0.23062142]
[1760252536700,0.58383188,112010.0,112000.0,0.23062142]
[1760252536903,0.58483188,112010.0,112000.0,0.23062142]
[1760252537576,0.58383188,112010.0,112000.0,0.23062142]
[1760252537780,0.58483188,112010.0,112000.0,0.23062142]
[1760252538068,0.58383188,112010.0,112000.0,0.27540234]
[1760252540198,0.58383188,112010.0,112000.0,0.23062142]
[1760252542372,0.00103669,112010.0,112000.0,0.23062142]
[1760252542613,0.58383188,112010.0,112000.0,0.23062142]
[1760252543380,0.00103669,112010.0,112000.0,0.23062142]
[1760252543608,0.58383188,112010.0,112000.0,0.23062142]
[1760252544238,0.00103669,112010.0,112000.0,0.23062142]
[1760252544452,0.58383188,112010.0,112000.0,0.23062142]
[1760252547597,0.76238736,112010.0,112000.0,0.23062142]
[1760252547805,0.17959217,112010.0,112000.0,0.23062142]
[1760252548001,0.00103669,112010.0,112000.0,0.23062142]
[1760252548212,0.58383188,112010.0,112000.0,0.23062142]
[1760252549527,0.58383188,112010.0,112000.0,0.23975686]
[1760252551490,0.00103669,112010.0,112000.0,0.23975686]
[1760252551690,0.58383188,112010.0,112000.0,0.23975686]
[1760252552627,0.58383188,112010.0,112000.0,0.23062142]
[1760252557119,0.76238736,112010.0,112000.0,0.23062142]
[1760252560515,1.34518255,112010.0,112000.0,0.23055131]
[1760252560945,0.76238736,112010.0,112000.0,0.23055131]
[1760252561964,0.17959217,112010.0,112000.0,0.23055131]
[1760252562174,0.76238736,112010.0,112000.0,0.23055131]
[1760252563242,1.34518255,112010.0,112000.0,0.05205]
[1760252564332,0.76238736,112010.0,112000.0,0.05205]
[1760252565874,0.17959217,112010.0,112000.0,0.05205]
[1760252566074,1.34518255,112010.0,112000.0,0.05205]
[1760252569387,0.17959217,112010.0,112000.0,0.05205]
[1760252569622,1.34518255,112010.0,112000.0,0.02809]
[1760252570080,1.34518255,112010.0,112000.0,0.05134]
[1760252571336,0.76238736,112010.0,112000.0,0.05134]
[1760252571578,0.76192562,112010.0,112000.0,0.05134]
[1760252573022,0.17959217,112010.0,112000.0,0.05134]
[1760252573226,0.76192562,112010.0,112000.0,0.05134]
[1760252579534,0.17959217,112010.0,112000.0,0.05134]
[1760252579740,0.76192562,112010.0,112000.0,0.05134]
[1760252580600,0.17959217,112010.0,112000.0,0.05134]
[1760252580785,0.76192562,112010.0,112000.0,0.05134]
[1760252583551,4.70100462,112010.0,112000.0,0.05134]
[1760252584989,4.78972396,112010.0,112000.0,0.02809]
[1760252585181,0.51857142,112000.0,111990.0,0.03499]
[1760252585381,1.10090487,112000.0,111990.0,0.03499]
[1760252585554,1.10090487,112000.0,111990.0,0.05143]
[1760252587639,1.10078387,112000.0,111990.0,0.05143]
[1760252588461,1.10078387,112000.0,111990.0,0.0765491]
[1760252588636,1.10078387,112000.0,111990.0,0.05143]
[1760252589613,1.10078387,112000.0,111990.0,0.23001737]
[1760252590439,1.10078387,112000.0,111990.0,0.05143]
[1760252590655,1.10167412,112000.0,111990.0,0.05143]
[1760252590875,0.51934067,112000.0,111990.0,0.05143]
[1760252591076,0.51934067,112000.0,111990.0,0.25513647]
[1760252591285,1.10167412,112000.0,111990.0,0.25513647]
[1760252591878,1.10167412,112000.0,111990.0,0.23001737]
[1760252592080,0.34089025,112000.0,111990.0,0.23001737]
[1760252594203,0.9232237,112000.0,111990.0,0.23001737]
[1760252595438,0.9232237,112000.0,111990.0,0.23101737]
[1760252595642,0.9232237,112000.0,111990.0,0.23201737]
[1760252596050,1.10179512,112000.0,111990.0,0.23201737]
[1760252596667,0.51946167,112000.0,111990.0,0.23201737]
[1760252596875,1.10179512,112000.0,111990.0,0.23201737]
[1760252599026,0.9232237,112000.0,111990.0,0.23201737]
[1760252600906,0.34089025,112000.0,111990.0,0.23201737]
[1760252601187,0.9232237,112000.0,111990.0,0.23201737]
[1760252602210,0.34089025,112000.0,111990.0,0.27519521]
[1760252602391,0.9232237,112000.0,111990.0,0.23201737]
[1760252603451,0.34089025,112000.0,111990.0,0.23201737]
[1760252607983,0.9232237,112000.0,111990.0,0.23201737]
[1760252608384,1.10179512,112000.0,111990.0,0.23201737]
[1760252609083,0.9232237,112000.0,111990.0,0.23201737]
[1760252613542,0.34089025,112000.0,111990.0,0.23201737]
[1760252613861,0.9232237,112000.0,111990.0,0.27519521]
[1760252614078,0.9232237,112000.0,111990.0,0.23201737]
[1760252615028,0.34089025,112000.0,111990.0,0.23201737]
[1760252615716,0.34089025,112000.0,111990.0,0.26216927]
[1760252618530,0.00089025,112000.0,111990.0,0.26216927]
[1760252618936,0.00089025,112000.0,111990.0,0.35088861]
[1760252621859,0.00089025,112000.0,111990.0,0.93322206]
[1760252622214,0.00089025,112000.0,111990.0,0.35962383]
[1760252623478,0.00089025,112000.0,111990.0,0.94195728]
[1760252631561,0.00089025,112000.0,111990.0,0.94168203]
[1760252634795,0.00089025,112000.0,111990.0,0.35962383]
[1760252634997,0.00089025,112000.0,111990.0,0.94168203]
[1760252635203,0.00089025,112000.0,111990.0,0.35962383]
[1760252635420,0.00089025,112000.0,111990.0,0.85296269]
[1760252638043,0.58294845,112000.0,111990.0,0.27090449]
[1760252641405,8e-05,112010.0,112000.0,0.20872332]
[1760252641632,0.5821382,112010.0,112000.0,0.24568332]
[1760252641841,0.5821382,112010.0,112000.0,0.26091332]
[1760252642063,0.5821382,112010.0,112000.0,0.02757]
[1760252642064,1.68275188,112010.0,112000.0,0.02757]
[1760252642273,0.51857142,112000.0,111990.0,0.21694737]
[1760252642480,1.68268782,112000.0,111990.0,0.21594737]
[1760252642685,1.68268782,112000.0,111990.0,0.23117737]
[1760252642891,1.68268782,112000.0,111990.0,0.23017737]
[1760252645024,1.5041164,112000.0,111990.0,0.23017737]
[1760252645669,1.68268782,112000.0,111990.0,0.23017737]
[1760252646998,1.68268782,112000.0,111990.0,0.23113422]
[1760252647342,1.5041164,112000.0,111990.0,0.23113422]
[1760252648809,0.34,112000.0,111990.0,0.23113422]
[1760252649011,1.5041164,112000.0,111990.0,0.2732658]
[1760252651026,1.5041164,112000.0,111990.0,0.23113422]
[1760252652629,1.50399601,112000.0,111990.0,0.23113422]
[1760252653459,0.92193781,112000.0,111990.0,0.23113422]
[1760252658026,0.33987961,112000.0,111990.0,0.23113422]
[1760252658255,1.50399601,112000.0,111990.0,0.23113422]
[1760252658772,0.33987961,112000.0,111990.0,0.23113422]
[1760252659015,1.50399601,112000.0,111990.0,0.23113422]
[1760252659857,0.33987961,112000.0,111990.0,0.23113422]
[1760252660102,1.50399601,112000.0,111990.0,0.23113422]
[1760252661609,0.92193781,112000.0,111990.0,0.23113422]
[1760252665906,1.10050923,112000.0,111990.0,0.23113422]
[1760252666910,0.51845103,112000.0,111990.0,0.23113422]
[1760252667092,1.68256743,112000.0,111990.0,0.23113422]
[1760252668451,0.51845103,112000.0,111990.0,0.23113422]
[1760252668775,1.68256743,112000.0,111990.0,0.23113422]
[1760252672580,0.17857142,112000.0,111990.0,0.23113422]
[1760252672780,1.34268782,112000.0,111990.0,0.23113422]
[1760252675990,1.68268782,112000.0,111990.0,0.23113422]
[1760252678628,1.68268782,112000.0,111990.0,0.05254685]
[1760252683276,1.68268782,112000.0,111990.0,0.07681969]
[1760252683582,1.68268782,112000.0,111990.0,0.05254685]
[1760252683778,0.51306077,112000.0,111990.0,0.23113422]
[1760252683987,0.51306077,112000.0,111990.0,0.05254685]
[1760252684287,1.67717717,112000.0,111990.0,0.05254685]
[1760252685466,0.51306077,112000.0,111990.0,0.05254685]
[1760252685586,1.67717717,112000.0,111990.0,0.05254685]
[1760252693590,1.09548253,112000.0,111990.0,0.05254685]
[1760252694005,5.70570263,112000.0,111990.0,0.00095685]
[1760252694214,5.72244574,112000.0,111990.0,0.00095685]
[1760252694606,1.81024844,112000.0,111990.0,0.00095685]
[1760252694805,5.74932744,112000.0,111990.0,0.00087185]
[1760252695750,4.49576458,112000.0,111990.0,0.00087185]
[1760252695953,5.6616081,112000.0,111990.0,0.00087185]
[1760252696461,4.49676458,112000.0,111990.0,0.01737185]
[1760252696690,5.06344323,112000.0,111990.0,0.05241185]
[1760252697127,5.07744934,112000.0,111990.0,0.05241185]
[1760252697517,5.07644934,112000.0,111990.0,0.05241185]
[1760252698299,5.07544934,112000.0,111990.0,0.05241185]
[1760252698532,1.13637034,112000.0,111990.0,0.05241185]
[1760252699297,1.22508968,112000.0,111990.0,0.02910185]
[1760252699747,1.13637034,112000.0,111990.0,0.02910185]
[1760252700373,0.55394858,112000.0,111990.0,0.05241185]
[1760252700514,1.13637034,112000.0,111990.0,0.05241185]
[1760252701662,1.12236423,112000.0,111990.0,0.05241185]
[1760252701858,1.09548253,112000.0,111990.0,0.05241185]
[1760252704303,1.09548253,112000.0,111990.0,0.02910185]
[1760252704905,1.09548253,112000.0,111990.0,0.00087185]
[1760252705344,1.18420187,112000.0,111990.0,0.00087185]
[1760252705765,1.09548253,112000.0,111990.0,0.00087185]
[1760252705967,1.09548253,112000.0,111990.0,0.01737185]
[1760252706166,1.12236016,112000.0,111990.0,0.01737185]
[1760252706617,1.12236016,112000.0,111990.0,0.00087185]
[1760252706786,1.70478192,112000.0,111990.0,0.00087185]
[1760252707577,1.79350126,112000.0,111990.0,0.00087185]
[1760252707906,1.79350126,112000.0,111990.0,0.02722185]
[1760252708319,1.70478192,112000.0,111990.0,0.02722185]
[1760252708552,5.66058134,112000.0,111990.0,0.00087185]
[1760252709452,1.72150234,112000.0,111990.0,0.00087185]
[1760252709650,5.66058134,112000.0,111990.0,0.00087185]
[1760252709885,1.72150234,112000.0,111990.0,0.00087185]
[1760252710107,5.66058134,112000.0,111990.0,0.01591185]